[Event "Hungarian Rapid-ch 2022"]
[Site "Ajka"]
[Date "2022.07.16"]
[Round "7.13"]
[White "Horvath, Csaba"]
[Black "Benedek, Istvan"]
[Result "1-0"]
[ECO "A05"]
[WhiteElo "2506"]
[BlackElo "2059"]
[Annotator "ChessBase"]
[PlyCount "62"]
[EventDate "2022.07.15"]
[EventType "swiss"]
[EventCountry "HUN"]
[SourceTitle "playchess.com"]
[Source "ChessBase"]
[SourceQuality "1"]
[TimeControl "900+10"]

1. Nf3 {[%emt 0:00:12]} Nf6 {[%emt 0:00:12]} 2. c4 {[%emt 0:00:02]} g6 {[%emt 0:00:03]} 3. b3 {[%emt 0:00:13]} Bg7 {[%emt 0:00:05]} 4. Bb2 {[%emt 0:00:01]} b6 {[%emt 0:00:32]} 5. g3 {[%emt 0:00:14]} Bb7 {[%emt 0:00:02]} 6. Bg2 {[%emt 0:00:02]} O-O {[%emt 0:00:17]} 7. O-O {[%emt 0:00:06]} d6 {[%emt 0:00:23]} 8. d4 {[%emt 0:00:07]} Nbd7 {[%emt 0:00:15]} 9. d5 {[%emt 0:01:22]} Nc5 {[%emt 0:00:29]} 10. Nd4 {[%emt 0:00:17]} a5 {[%emt 0:01:05]} 11. Nc3 {[%emt 0:00:07]} Qd7 {[%emt 0:00:48]} 12. a3 {[%emt 0:02:15]} e5 {[%emt 0:00:35]} 13. Ndb5 {[%emt 0:00:03]} Ne8 {[%emt 0:00:51]} 14. e4 {[%emt 0:00:15]} f5 {[%emt 0:00:04]} 15. exf5 {[%emt 0:00:07]} gxf5 {[%emt 0:00:04]} 16. b4 {[%emt 0:00:05]} Na6 {[%emt 0:00:26]} 17. Qb3 {[%emt 0:00:53]} f4 {[%emt 0:00:24]} 18. Ne4 {[%emt 0:00:05]} Nf6 {[%emt 0:02:39]} 19. Nbc3 {[%emt 0:00:40]} Nxe4 {[%emt 0:01:11]} 20. Nxe4 {[%emt 0:00:02]} Qg4 {[%emt 0:00:21]} 21. f3 {[%emt 0:01:10]} Qc8 {[%emt 0:01:05]} 22. Ng5 {[%emt 0:00:36]} fxg3 {[%emt 0:00:42]} 23. hxg3 {[%emt 0:00:14]} Bh6 {[%emt 0:00:09]} 24. Ne6 {[%emt 0:00:45]} Rf6 {[%emt 0:00:25]} 25. f4 {[%emt 0:00:28]} Rxe6 {[%emt 0:00:21]} 26. Bh3 {[%emt 0:00:43]} Qd8 {[%emt 0:01:27]} 27. Bxe6+ Kh8 28. fxe5 {[%emt 0:00:14]} Qg5 {[%emt 0:01:22]} 29. exd6+ {[%emt 0:00:11]} Bg7 {[%emt 0:00:01]} 30. Rf7 {[%emt 0:00:34]} Be5 {[%emt 0:00:44]} 31. Rf5 {[%emt 0:00:54]} Qd8 1-0

[Event "Hungarian Rapid-ch 2022"]
[Site "Ajka"]
[Date "2022.07.16"]
[Round "7.14"]
[White "Nagy, Kristof"]
[Black "Varga, Zoltan"]
[Result "0-1"]
[ECO "D02"]
[WhiteElo "2162"]
[BlackElo "2401"]
[Annotator "ChessBase"]
[PlyCount "118"]
[EventDate "2022.07.15"]
[EventType "swiss"]
[EventCountry "HUN"]
[SourceTitle "playchess.com"]
[Source "ChessBase"]
[SourceQuality "1"]
[TimeControl "900+10"]

1. d4 {[%emt 0:00:12]} d5 {[%emt 0:00:11]} 2. Nf3 {[%emt 0:00:03]} c6 {[%emt 0:00:02]} 3. Bf4 {[%emt 0:00:03]} Qb6 {[%emt 0:00:01]} 4. Qc1 {[%emt 0:00:07]} Bg4 {[%emt 0:00:13]} 5. Nbd2 {[%emt 0:00:04]} Nd7 {[%emt 0:00:03]} 6. e3 {[%emt 0:00:02]} Ngf6 {[%emt 0:00:05]} 7. Be2 {[%emt 0:00:13]} e6 {[%emt 0:00:18]} 8. O-O {[%emt 0:00:04]} c5 {[%emt 0:00:09]} 9. c3 {[%emt 0:00:14]} Be7 {[%emt 0:00:24]} 10. h3 {[%emt 0:00:48]} Bh5 {[%emt 0:00:07]} 11. Re1 {[%emt 0:01:28]} Rc8 {[%emt 0:00:50]} 12. a4 Bd6 13. a5 {[%emt 0:01:43]} Qc7 {[%emt 0:00:48]} 14. Bxd6 {[%emt 0:00:12]} Qxd6 {[%emt 0:00:01]} 15. Qd1 O-O {[%emt 0:00:11]} 16. Qb3 {[%emt 0:00:44]} Rc7 {[%emt 0:00:02]} 17. Qa3 {[%emt 0:00:29]} h6 {[%emt 0:00:23]} 18. Bb5 {[%emt 0:00:24]} Bxf3 {[%emt 0:01:24]} 19. Nxf3 {[%emt 0:00:03]} Ne4 {[%emt 0:00:01]} 20. Red1 {[%emt 0:01:25]} Ndf6 {[%emt 0:01:45]} 21. dxc5 {[%emt 0:02:42]} Qxc5 {[%emt 0:01:01]} 22. Qxc5 {[%emt 0:00:51]} Rxc5 {[%emt 0:00:11]} 23. Bf1 {[%emt 0:00:19]} Nd6 {[%emt 0:00:18]} 24. Ne5 {[%emt 0:00:11]} Rfc8 {[%emt 0:00:13]} 25. Rd4 {[%emt 0:01:15]} Kf8 {[%emt 0:00:03]} 26. Rb4 {[%emt 0:00:52]} Ke7 {[%emt 0:00:04]} 27. f3 {[%emt 0:00:18]} R5c7 {[%emt 0:00:49]} 28. Kf2 {[%emt 0:00:16]} Nfe8 {[%emt 0:00:07]} 29. g4 {[%emt 0:00:26]} g5 {[%emt 0:00:47]} 30. Be2 {[%emt 0:01:05]} f6 {[%emt 0:00:09]} 31. Nd3 {[%emt 0:00:02]} Nc4 {[%emt 0:00:01]} 32. Ne1 {[%emt 0:00:38]} Ne5 {[%emt 0:00:07]} 33. Nc2 {[%emt 0:00:35]} Nd6 {[%emt 0:00:53]} 34. Nd4 {[%emt 0:00:11]} Rc5 {[%emt 0:00:03]} 35. Rba4 {[%emt 0:01:30]} Rh8 {[%emt 0:00:10]} 36. R4a3 {[%emt 0:01:26]} Nd7 {[%emt 0:00:25]} 37. a6 {[%emt 0:00:12]} b6 {[%emt 0:00:05]} 38. Rg1 {[%emt 0:00:08]} Ne5 {[%emt 0:00:17]} 39. b4 {[%emt 0:00:13]} Rc7 {[%emt 0:00:45]} 40. Nb5 {[%emt 0:00:01]} Nxb5 41. Bxb5 {[%emt 0:00:01]} h5 {[%emt 0:00:02]} 42. f4 {[%emt 0:00:15]} Nf7 {[%emt 0:00:10]} 43. Kf3 {[%emt 0:00:15]} hxg4+ {[%emt 0:01:46]} 44. hxg4 {[%emt 0:00:04]} Rh3+ {[%emt 0:00:01]} 45. Rg3 {[%emt 0:00:01]} Rh1 {[%emt 0:00:01]} 46. Ke2 {[%emt 0:00:16]} Rh2+ {[%emt 0:00:16]} 47. Kd1 {[%emt 0:00:16]} Rf2 {[%emt 0:00:47]} 48. Rh3 {[%emt 0:00:20]} gxf4 {[%emt 0:00:26]} 49. exf4 {[%emt 0:00:01]} Rxf4 {[%emt 0:00:02]} 50. Be2 {[%emt 0:00:01]} Ng5 {[%emt 0:00:30]} 51. Rh8 {[%emt 0:00:02]} Rf2 {[%emt 0:00:31]} 52. Rb8 Kd6 {[%emt 0:00:04]} 53. Rd8+ {[%emt 0:00:25]} Ke5 {[%emt 0:00:02]} 54. Ke1 {[%emt 0:00:16]} Rh2 {[%emt 0:00:19]} 55. Rb8 {[%emt 0:00:06]} Rh1+ {[%emt 0:00:20]} 56. Kf2 {[%emt 0:00:06]} Ne4+ {[%emt 0:00:06]} 57. Kg2 {[%emt 0:00:07]} Rch7 {[%emt 0:00:08]} 58. Rb7 {[%emt 0:00:36]} R7h2+ {[%emt 0:00:06]} 59. Kf3 {[%emt 0:00:02]} Rf2+ {[%emt 0:00:02]} 0-1

[Event "Hungarian Rapid-ch 2022"]
[Site "Ajka"]
[Date "2022.07.16"]
[Round "7.15"]
[White "Mihok, Oliver"]
[Black "Gombocz, Ferenc Jr."]
[Result "1/2-1/2"]
[ECO "C60"]
[WhiteElo "2549"]
[BlackElo "2229"]
[Annotator "ChessBase"]
[PlyCount "134"]
[EventDate "2022.07.15"]
[EventType "swiss"]
[EventCountry "HUN"]
[SourceTitle "playchess.com"]
[Source "ChessBase"]
[SourceQuality "1"]
[TimeControl "900+10"]

1. e4 {[%emt 0:00:12]} e5 {[%emt 0:00:12]} 2. Nf3 {[%emt 0:00:01]} Nc6 {[%emt 0:00:02]} 3. Bb5 {[%emt 0:00:03]} g6 {[%emt 0:00:02]} 4. d4 {[%emt 0:00:09]} exd4 {[%emt 0:00:03]} 5. Bg5 {[%emt 0:00:03]} Be7 {[%emt 0:00:03]} 6. Bxe7 {[%emt 0:00:02]} Qxe7 {[%emt 0:00:02]} 7. Bxc6 {[%emt 0:00:01]} dxc6 {[%emt 0:00:02]} 8. Qxd4 {[%emt 0:00:02]} Nf6 {[%emt 0:00:02]} 9. Nc3 {[%emt 0:00:03]} Bg4 {[%emt 0:00:02]} 10. Nd2 {[%emt 0:00:16]} c5 {[%emt 0:00:04]} 11. Qe3 {[%emt 0:00:01]} O-O-O {[%emt 0:00:03]} 12. f3 {[%emt 0:00:22]} Be6 {[%emt 0:00:26]} 13. O-O-O {[%emt 0:00:05]} b6 {[%emt 0:01:03]} 14. h4 {[%emt 0:00:21]} h5 {[%emt 0:00:19]} 15. Qg5 {[%emt 0:00:22]} Rhe8 {[%emt 0:00:34]} 16. Rhe1 {[%emt 0:01:08]} Nd7 {[%emt 0:00:54]} 17. Qg3 {[%emt 0:01:35]} a6 {[%emt 0:01:12]} 18. Nf1 {[%emt 0:00:43]} Nf6 {[%emt 0:00:55]} 19. Ne3 {[%emt 0:00:56]} Rxd1+ {[%emt 0:00:49]} 20. Rxd1 {[%emt 0:00:03]} Rd8 {[%emt 0:00:06]} 21. Re1 {[%emt 0:02:10]} Qd7 {[%emt 0:03:12]} 22. Rd1 {[%emt 0:00:27]} Qe7 {[%emt 0:00:22]} 23. Rxd8+ {[%emt 0:00:02]} Qxd8 {[%emt 0:00:28]} 24. Qg5 {[%emt 0:00:40]} Nd7 {[%emt 0:00:40]} 25. f4 {[%emt 0:00:41]} Qxg5 {[%emt 0:02:51]} 26. hxg5 {[%emt 0:00:01]} Nf8 {[%emt 0:00:06]} 27. Kd2 {[%emt 0:01:34]} c6 {[%emt 0:01:47]} 28. Ke2 {[%emt 0:00:58]} Bd7 {[%emt 0:01:07]} 29. Nc4 {[%emt 0:00:55]} Kc7 {[%emt 0:00:07]} 30. Ke3 {[%emt 0:00:32]} Be6 {[%emt 0:01:12]} 31. Ne5 {[%emt 0:00:08]} Nd7 {[%emt 0:00:05]} 32. Nf3 {[%emt 0:00:17]} Bg4 {[%emt 0:00:59]} 33. Nh2 {[%emt 0:00:17]} Be6 {[%emt 0:00:04]} 34. Nf1 {[%emt 0:00:42]} Bg4 {[%emt 0:00:21]} 35. Kf2 {[%emt 0:00:17]} Nf8 {[%emt 0:00:21]} 36. Ne3 {[%emt 0:00:01]} Bd7 {[%emt 0:00:04]} 37. Ne2 {[%emt 0:00:25]} b5 {[%emt 0:00:12]} 38. Kf3 {[%emt 0:00:06]} Ne6 {[%emt 0:00:04]} 39. c3 {[%emt 0:00:13]} a5 {[%emt 0:00:07]} 40. a3 {[%emt 0:00:36]} a4 {[%emt 0:00:11]} 41. Ng1 {[%emt 0:00:40]} c4 {[%emt 0:00:20]} 42. Ne2 {[%emt 0:00:24]} Nc5 {[%emt 0:00:03]} 43. f5 {[%emt 0:00:36]} Nd3 {[%emt 0:00:17]} 44. Nf4 {[%emt 0:00:06]} Nxb2 {[%emt 0:00:20]} 45. fxg6 {[%emt 0:00:11]} fxg6 {[%emt 0:00:02]} 46. Nxg6 {[%emt 0:00:01]} Nd3 {[%emt 0:00:07]} 47. Nf4 {[%emt 0:00:14]} Ne5+ {[%emt 0:00:05]} 48. Ke2 {[%emt 0:00:36]} Be8 {[%emt 0:00:08]} 49. Nf5 {[%emt 0:00:07]} Kd7 {[%emt 0:00:29]} 50. Ng7 {[%emt 0:00:18]} Bg6 {[%emt 0:00:05]} 51. Ke3 {[%emt 0:00:21]} Ng4+ {[%emt 0:00:12]} 52. Kd4 {[%emt 0:00:10]} Kd6 {[%emt 0:00:02]} 53. Nf5+ {[%emt 0:00:13]} Bxf5 {[%emt 0:00:02]} 54. exf5 {[%emt 0:00:01]} c5+ {[%emt 0:00:06]} 55. Ke4 {[%emt 0:00:01]} b4 {[%emt 0:00:03]} 56. cxb4 {[%emt 0:00:43]} cxb4 {[%emt 0:00:01]} 57. Nd5 {[%emt 0:00:43]} bxa3 {[%emt 0:00:12]} 58. Nc3 {[%emt 0:00:02]} Nf2+ {[%emt 0:00:14]} 59. Kd4 {[%emt 0:00:07]} Nd1 {[%emt 0:00:33]} 60. Kxc4 {[%emt 0:00:29]} Ne3+ {[%emt 0:00:07]} 61. Kb4 {[%emt 0:00:17]} Nxf5 {[%emt 0:00:03]} 62. Kxa3 {[%emt 0:00:13]} Ke6 {[%emt 0:00:07]} 63. Kxa4 {[%emt 0:00:22]} Ne3 {[%emt 0:00:11]} 64. g3 {[%emt 0:00:09]} Kf5 {[%emt 0:00:06]} 65. Ne2 {[%emt 0:00:10]} Kxg5 {[%emt 0:00:03]} 66. Nf4 {[%emt 0:00:01]} Nf5 {[%emt 0:00:05]} 67. Nxh5 {[%emt 0:00:01]} Kxh5 {[%emt 0:00:02]} 1/2-1/2

[Event "Hungarian Rapid-ch 2022"]
[Site "Ajka"]
[Date "2022.07.16"]
[Round "7.16"]
[White "Tolnai, Tibor"]
[Black "Kassay, Krisztian"]
[Result "0-1"]
[ECO "B07"]
[WhiteElo "2433"]
[BlackElo "2157"]
[Annotator "ChessBase"]
[PlyCount "89"]
[EventDate "2022.07.15"]
[EventType "swiss"]
[EventCountry "HUN"]
[SourceTitle "playchess.com"]
[Source "ChessBase"]
[SourceQuality "1"]
[TimeControl "900+10"]

1. e4 {[%emt 0:00:13]} d6 {[%emt 0:00:18]} 2. d4 {[%emt 0:00:04]} Nf6 {[%emt 0:00:03]} 3. Nc3 {[%emt 0:00:01]} Nbd7 {[%emt 0:00:02]} 4. Be3 {[%emt 0:00:25]} e5 5. f3 {[%emt 0:00:09]} Be7 {[%emt 0:00:11]} 6. Qd2 {[%emt 0:00:15]} c6 {[%emt 0:00:09]} 7. O-O-O {[%emt 0:00:06]} O-O {[%emt 0:00:58]} 8. g4 {[%emt 0:00:16]} b5 {[%emt 0:00:23]} 9. Kb1 {[%emt 0:00:04]} a5 {[%emt 0:00:38]} 10. h4 {[%emt 0:00:06]} a4 {[%emt 0:01:12]} 11. Nce2 {[%emt 0:00:34]} Qa5 {[%emt 0:05:19]} 12. Qxa5 {[%emt 0:00:47]} Rxa5 {[%emt 0:00:02]} 13. Ng3 {[%emt 0:00:41]} exd4 {[%emt 0:01:11]} 14. Bxd4 {[%emt 0:00:03]} Ne5 {[%emt 0:00:09]} 15. g5 {[%emt 0:00:16]} Ne8 {[%emt 0:00:18]} 16. Be2 {[%emt 0:02:17]} c5 {[%emt 0:01:08]} 17. Be3 {[%emt 0:00:15]} Nc7 {[%emt 0:00:46]} 18. Bd2 {[%emt 0:02:50]} Ra7 {[%emt 0:00:43]} 19. f4 {[%emt 0:00:06]} Nc6 {[%emt 0:00:40]} 20. Nf3 {[%emt 0:00:36]} Bg4 {[%emt 0:00:15]} 21. Nd4 {[%emt 0:01:10]} Nxd4 {[%emt 0:00:22]} 22. Bxg4 {[%emt 0:00:02]} b4 {[%emt 0:00:15]} 23. Be3 {[%emt 0:00:27]} Ncb5 {[%emt 0:00:40]} 24. Nf5 {[%emt 0:01:57]} Nxf5 {[%emt 0:00:11]} 25. exf5 {[%emt 0:00:04]} a3 {[%emt 0:01:14]} 26. Be2 {[%emt 0:00:24]} Nc7 {[%emt 0:00:05]} 27. Bc4 {[%emt 0:00:44]} axb2 {[%emt 0:00:11]} 28. Rhe1 {[%emt 0:00:39]} d5 {[%emt 0:01:05]} 29. Bxd5 {[%emt 0:00:02]} Nxd5 {[%emt 0:00:24]} 30. Rxd5 {[%emt 0:00:02]} Rfa8 {[%emt 0:00:01]} 31. Bxc5 {[%emt 0:01:07]} Bxc5 {[%emt 0:00:01]} 32. Rxc5 {[%emt 0:00:01]} Rxa2 {[%emt 0:00:02]} 33. Re8+ {[%emt 0:01:00]} Rxe8 {[%emt 0:00:02]} 34. Kxa2 {[%emt 0:00:01]} Kf8 {[%emt 0:01:10]} 35. Rc4 {[%emt 0:01:46]} b3+ {[%emt 0:00:22]} 36. cxb3 {[%emt 0:00:04]} Re2 {[%emt 0:00:01]} 37. b4 {[%emt 0:00:12]} Ke7 {[%emt 0:00:30]} 38. b5 {[%emt 0:00:05]} Kd6 {[%emt 0:00:12]} 39. Rc6+ {[%emt 0:00:36]} Kd7 {[%emt 0:00:07]} 40. f6 {[%emt 0:00:02]} g6 {[%emt 0:00:16]} 41. Rc4 {[%emt 0:00:30]} Re6 {[%emt 0:00:11]} 42. Kxb2 {[%emt 0:00:09]} Rb6 {[%emt 0:00:01]} 43. Rc5 {[%emt 0:00:02]} Kd6 {[%emt 0:00:04]} 44. Re5 {[%emt 0:00:01]} Rb7 {[%emt 0:00:24]} 45. Kb3 {[%emt 0:00:02]} 0-1

[Event "Hungarian Rapid-ch 2022"]
[Site "Ajka"]
[Date "2022.07.16"]
[Round "7.17"]
[White "Mihok-Juhasz, Barbara"]
[Black "Emodi, Barnabas"]
[Result "1/2-1/2"]
[ECO "B52"]
[WhiteElo "2221"]
[BlackElo "2341"]
[Annotator "ChessBase"]
[PlyCount "138"]
[EventDate "2022.07.15"]
[EventType "swiss"]
[EventCountry "HUN"]
[SourceTitle "playchess.com"]
[Source "ChessBase"]
[SourceQuality "1"]
[TimeControl "900+10"]

1. e4 {[%emt 0:00:14]} c5 {[%emt 0:00:14]} 2. Nf3 {[%emt 0:00:05]} d6 {[%emt 0:00:06]} 3. Bb5+ {[%emt 0:00:03]} Bd7 {[%emt 0:00:32]} 4. Bxd7+ {[%emt 0:00:04]} Qxd7 {[%emt 0:00:13]} 5. c4 {[%emt 0:00:10]} Nc6 {[%emt 0:00:14]} 6. d4 {[%emt 0:00:20]} cxd4 {[%emt 0:00:25]} 7. Nxd4 {[%emt 0:00:04]} Nf6 {[%emt 0:00:24]} 8. Nc3 {[%emt 0:00:02]} g6 {[%emt 0:00:11]} 9. b3 {[%emt 0:00:03]} Bg7 {[%emt 0:01:39]} 10. Bb2 {[%emt 0:00:02]} Qg4 {[%emt 0:02:22]} 11. Qxg4 {[%emt 0:00:32]} Nxg4 {[%emt 0:00:04]} 12. Nxc6 {[%emt 0:00:03]} bxc6 {[%emt 0:00:05]} 13. h3 {[%emt 0:00:08]} Ne5 {[%emt 0:01:50]} 14. O-O-O {[%emt 0:00:09]} Nd7 {[%emt 0:00:14]} 15. Na4 {[%emt 0:00:36]} Bxb2+ {[%emt 0:00:11]} 16. Kxb2 {[%emt 0:00:02]} Nb6 {[%emt 0:00:23]} 17. Nc3 {[%emt 0:01:04]} O-O {[%emt 0:00:20]} 18. Rhe1 {[%emt 0:00:55]} f6 {[%emt 0:00:36]} 19. f4 {[%emt 0:00:38]} Rad8 {[%emt 0:00:35]} 20. f5 {[%emt 0:03:53]} Nd7 {[%emt 0:01:11]} 21. Ne2 {[%emt 0:00:23]} Rb8 {[%emt 0:00:59]} 22. Nd4 {[%emt 0:00:11]} Rfc8 {[%emt 0:00:19]} 23. Nf3 {[%emt 0:01:51]} Rb7 {[%emt 0:00:22]} 24. Kc3 {[%emt 0:00:13]} a5 {[%emt 0:00:12]} 25. g4 {[%emt 0:00:30]} Rcb8 {[%emt 0:00:45]} 26. Nd4 {[%emt 0:00:52]} Rb6 {[%emt 0:00:34]} 27. h4 {[%emt 0:01:04]} a4 {[%emt 0:01:13]} 28. Rb1 {[%emt 0:01:11]} axb3 {[%emt 0:01:09]} 29. axb3 {[%emt 0:02:00]} Nc5 {[%emt 0:00:10]} 30. g5 {[%emt 0:00:09]} Kf7 {[%emt 0:00:09]} 31. Kc2 {[%emt 0:00:25]} e5 {[%emt 0:00:23]} 32. fxe6+ {[%emt 0:00:05]} Nxe6 {[%emt 0:00:01]} 33. Nxe6 {[%emt 0:00:08]} Kxe6 {[%emt 0:00:02]} 34. gxf6 {[%emt 0:00:15]} Kxf6 {[%emt 0:00:02]} 35. Rf1+ {[%emt 0:00:01]} Ke5 {[%emt 0:00:05]} 36. Rf7 {[%emt 0:00:02]} R8b7 {[%emt 0:00:07]} 37. Rf8 {[%emt 0:00:05]} Ra6 {[%emt 0:01:13]} 38. h5 {[%emt 0:01:18]} Re7 {[%emt 0:00:30]} 39. Kc3 {[%emt 0:00:17]} Raa7 {[%emt 0:00:08]} 40. hxg6 {[%emt 0:00:27]} hxg6 {[%emt 0:00:01]} 41. Rg1 {[%emt 0:00:02]} Rf7 {[%emt 0:00:20]} 42. Re8+ {[%emt 0:00:08]} Kf6 {[%emt 0:00:02]} 43. Rg8 {[%emt 0:00:10]} Rg7 {[%emt 0:00:04]} 44. Rc8 {[%emt 0:00:17]} Rac7 {[%emt 0:00:08]} 45. Rf8+ {[%emt 0:00:09]} Rcf7 {[%emt 0:00:30]} 46. Rc8 {[%emt 0:00:28]} Rc7 {[%emt 0:00:09]} 47. Rf8+ {[%emt 0:00:16]} Rcf7 {[%emt 0:00:02]} 48. Rc8 {[%emt 0:00:17]} Rc7 {[%emt 0:00:02]} 49. Rd8 {[%emt 0:00:23]} Rcd7 {[%emt 0:00:03]} 50. Rxd7 {[%emt 0:00:24]} Rxd7 {[%emt 0:00:02]} 51. b4 {[%emt 0:00:01]} Rb7 {[%emt 0:00:17]} 52. Rd1 {[%emt 0:00:15]} Ke5 {[%emt 0:00:05]} 53. Rg1 {[%emt 0:00:00]} Rg7 {[%emt 0:00:43]} 54. Rg4 {[%emt 0:00:02]} g5 {[%emt 0:00:19]} 55. b5 {[%emt 0:00:02]} Rc7 {[%emt 0:00:29]} 56. Rxg5+ {[%emt 0:00:18]} Kxe4 {[%emt 0:00:01]} 57. Kb4 {[%emt 0:00:10]} cxb5 {[%emt 0:00:21]} 58. cxb5 {[%emt 0:00:10]} d5 {[%emt 0:00:03]} 59. Rg4+ {[%emt 0:00:20]} Kd3 {[%emt 0:00:10]} 60. b6 {[%emt 0:00:04]} Rc1 {[%emt 0:00:16]} 61. Kb5 {[%emt 0:00:02]} d4 {[%emt 0:00:03]} 62. b7 {[%emt 0:00:05]} Rb1+ {[%emt 0:00:03]} 63. Kc6 {[%emt 0:00:04]} Kc3 {[%emt 0:00:06]} 64. Rg1 {[%emt 0:00:43]} Rxb7 {[%emt 0:00:20]} 65. Kxb7 {[%emt 0:00:01]} d3 {[%emt 0:00:02]} 66. Kc6 {[%emt 0:00:02]} d2 {[%emt 0:00:01]} 67. Kd5 {[%emt 0:00:01]} Kc2 {[%emt 0:00:01]} 68. Ke4 {[%emt 0:00:01]} d1=Q {[%emt 0:00:03]} 69. Rxd1 {[%emt 0:00:02]} Kxd1 {[%emt 0:00:01]} 1/2-1/2

[Event "Hungarian Rapid-ch 2022"]
[Site "Ajka"]
[Date "2022.07.16"]
[Round "7.18"]
[White "Kiss, Pal"]
[Black "Gelle, Istvan"]
[Result "1/2-1/2"]
[ECO "D10"]
[WhiteElo "2243"]
[BlackElo "2218"]
[Annotator "ChessBase"]
[PlyCount "44"]
[EventDate "2022.07.15"]
[EventType "swiss"]
[EventCountry "HUN"]
[SourceTitle "playchess.com"]
[Source "ChessBase"]
[SourceQuality "1"]
[TimeControl "900+10"]

1. d4 {[%emt 0:00:13]} d5 {[%emt 0:00:11]} 2. c4 {[%emt 0:00:02]} c6 {[%emt 0:00:02]} 3. Nc3 {[%emt 0:00:12]} Nf6 {[%emt 0:00:02]} 4. e3 {[%emt 0:00:02]} a6 {[%emt 0:00:02]} 5. Nf3 {[%emt 0:00:03]} b5 {[%emt 0:00:11]} 6. b3 {[%emt 0:00:07]} Bg4 {[%emt 0:00:03]} 7. Be2 {[%emt 0:00:01]} e6 {[%emt 0:00:23]} 8. O-O {[%emt 0:00:03]} Bd6 {[%emt 0:01:07]} 9. h3 {[%emt 0:00:10]} Bh5 {[%emt 0:00:02]} 10. Bb2 {[%emt 0:00:06]} O-O {[%emt 0:00:26]} 11. Ne5 {[%emt 0:00:32]} Bxe2 {[%emt 0:00:13]} 12. Nxe2 {[%emt 0:00:02]} Nfd7 {[%emt 0:01:26]} 13. cxd5 {[%emt 0:00:43]} cxd5 {[%emt 0:00:17]} 14. Nf4 {[%emt 0:01:26]} Nxe5 {[%emt 0:03:58]} 15. dxe5 {[%emt 0:00:05]} Be7 {[%emt 0:00:59]} 16. Rc1 {[%emt 0:01:45]} Qd7 {[%emt 0:02:11]} 17. Qg4 {[%emt 0:04:37]} Kh8 {[%emt 0:03:11]} 18. Rfd1 {[%emt 0:00:51]} Qb7 {[%emt 0:01:39]} 19. Nh5 {[%emt 0:02:57]} Rg8 {[%emt 0:00:28]} 20. Qf3 {[%emt 0:01:18]} Rf8 {[%emt 0:00:25]} 21. Qg4 {[%emt 0:01:18]} Rg8 {[%emt 0:00:04]} 22. Qf3 {[%emt 0:00:19]} Rf8 1/2-1/2

[Event "Hungarian Rapid-ch 2022"]
[Site "Ajka"]
[Date "2022.07.16"]
[Round "7.19"]
[White "Papp, Bence"]
[Black "Kovacs, Klara"]
[Result "1-0"]
[ECO "A45"]
[WhiteElo "2244"]
[BlackElo "2098"]
[Annotator "ChessBase"]
[PlyCount "69"]
[EventDate "2022.07.15"]
[EventType "swiss"]
[EventCountry "HUN"]
[SourceTitle "playchess.com"]
[Source "ChessBase"]
[SourceQuality "1"]
[TimeControl "900+10"]

1. d4 {[%emt 0:00:11]} Nf6 {[%emt 0:00:13]} 2. Bf4 {[%emt 0:00:01]} e6 {[%emt 0:00:07]} 3. Nf3 {[%emt 0:00:04]} c5 {[%emt 0:00:01]} 4. e3 {[%emt 0:00:01]} b6 {[%emt 0:00:00]} 5. Nc3 {[%emt 0:00:01]} Bb7 {[%emt 0:00:02]} 6. Nb5 {[%emt 0:00:07]} Nd5 {[%emt 0:00:38]} 7. Nd6+ {[%emt 0:00:03]} Bxd6 {[%emt 0:00:02]} 8. Bxd6 {[%emt 0:00:02]} cxd4 {[%emt 0:00:02]} 9. Qxd4 {[%emt 0:00:07]} f6 {[%emt 0:00:16]} 10. Qg4 {[%emt 0:01:51]} Kf7 {[%emt 0:00:17]} 11. Bd3 {[%emt 0:00:18]} Nc6 {[%emt 0:00:14]} 12. O-O-O {[%emt 0:00:53]} Rc8 {[%emt 0:00:04]} 13. Kb1 {[%emt 0:00:01]} a5 {[%emt 0:00:06]} 14. a3 {[%emt 0:00:30]} Na7 {[%emt 0:01:44]} 15. e4 {[%emt 0:04:17]} Ne7 {[%emt 0:00:30]} 16. e5 {[%emt 0:00:02]} f5 {[%emt 0:01:21]} 17. Ng5+ {[%emt 0:00:01]} Kg8 {[%emt 0:00:04]} 18. Qh5 {[%emt 0:01:14]} Ng6 {[%emt 0:00:40]} 19. Rhg1 {[%emt 0:02:48]} Qe8 {[%emt 0:01:37]} 20. g4 {[%emt 0:00:23]} f4 {[%emt 0:01:12]} 21. Nh3 {[%emt 0:01:37]} Bf3 {[%emt 0:01:31]} 22. Rde1 {[%emt 0:00:01]} Nc6 {[%emt 0:00:41]} 23. Ng5 {[%emt 0:00:49]} Bd5 {[%emt 0:02:11]} 24. c4 {[%emt 0:00:02]} Ncxe5 {[%emt 0:01:04]} 25. Bxe5 {[%emt 0:00:13]} Bxc4 {[%emt 0:00:03]} 26. Bxc4 {[%emt 0:00:38]} Rxc4 {[%emt 0:00:01]} 27. Rc1 {[%emt 0:00:08]} b5 {[%emt 0:00:51]} 28. Rxc4 {[%emt 0:00:01]} bxc4 {[%emt 0:00:01]} 29. Nh3 {[%emt 0:01:45]} Qa8 {[%emt 0:00:25]} 30. Bc3 {[%emt 0:00:28]} Qe4+ {[%emt 0:01:39]} 31. Ka1 {[%emt 0:00:03]} d5 {[%emt 0:01:19]} 32. Re1 {[%emt 0:00:01]} Qd3 {[%emt 0:00:02]} 33. Nxf4 {[%emt 0:00:07]} Qc2 {[%emt 0:00:10]} 34. Nxe6 {[%emt 0:00:20]} Qxf2 {[%emt 0:00:28]} 35. Qxd5 1-0